fUSD/lending_fUSD_20250510
["ID","MTS","AMOUNT","RATE_DAILY","PERIOD"]
[360536986,1746860645143,-517.15,0.00019999,2]
[360536987,1746860645175,-517.15,0.00019999,2]
[360536988,1746860645208,-517.15,0.00019999,2]
[360536989,1746860645241,-517.25768723,0.00019999,2]
[360536990,1746860645275,-400.0,0.00019999,2]
[360536991,1746860645309,-400.0,0.00019999,2]
[360536992,1746860645342,-400.0,0.00019999,2]
[360536993,1746860645373,-400.0,0.00019999,2]
[360536994,1746860645410,-400.0,0.00019999,2]
[360536995,1746860645442,-400.0,0.00019999,2]
[360536996,1746860645473,-400.0,0.00019999,2]
[360536997,1746860645637,-400.0,0.00019999,2]
[360536998,1746860645672,-400.0,0.00019999,2]
[360536999,1746860645704,-400.0,0.00019999,2]
[360537000,1746860645738,-400.0,0.00019999,2]
[360537001,1746860645772,-400.0,0.00019999,2]
[360537002,1746860645804,-400.0,0.00019999,2]
[360537003,1746860645836,-400.0,0.00019999,2]
[360537004,1746860645868,-400.0,0.00019999,2]
[360537005,1746860645905,-400.0,0.00019999,2]
[360537006,1746860645939,-400.0,0.00019999,2]
[360537007,1746860645970,-400.0,0.00019999,2]
[360537008,1746860646005,-400.0,0.00019999,2]
[360537009,1746860646036,-400.0,0.00019999,2]
[360537010,1746860646071,-400.0,0.00019999,2]
[360537011,1746860646103,-400.0,0.00019999,2]
[360537012,1746860646136,-400.0,0.00019999,2]
[360537013,1746860646169,-277.28,0.00019999,2]
[360537014,1746860646200,-400.0,0.00019999,2]
[360537015,1746860646231,-400.0,0.00019999,2]
[360537016,1746860646264,-400.0,0.00019999,2]
[360537017,1746860646295,-400.0,0.00019999,2]
[360537018,1746860646327,-400.0,0.00019999,2]
[360537019,1746860646358,-400.0,0.00019999,2]
[360537020,1746860646392,-400.0,0.00019999,2]
[360537021,1746860646424,-400.0,0.00019999,2]
[360537022,1746860646456,-400.0,0.00019999,2]
[360537023,1746860646488,-400.0,0.00019999,2]
[360537024,1746860646522,-5592.47,0.00019999,2]
[360537025,1746860646556,-5592.47,0.00019999,2]
[360537026,1746860646587,-400.0,0.00019999,2]
[360537027,1746860646620,-5592.47,0.00019999,2]
[360537028,1746860646654,-5592.47,0.00019999,2]
[360537029,1746860646688,-429.37638401,0.00019999,2]
[360537030,1746860646720,-5592.47,0.00019999,2]
[360537031,1746860646754,-5592.47,0.00019999,2]
[360537032,1746860646788,-5592.47,0.00019999,2]
[360537033,1746860646823,-5592.47,0.00019999,2]
[360537034,1746860646858,-5592.47,0.00019999,2]
[360537035,1746860646894,-5592.47,0.00019999,2]
[360537036,1746860646926,-5592.47,0.00019999,2]
[360537037,1746860646957,-500.22,0.00019999,2]
[360537038,1746860646989,-5592.47,0.00019999,2]
[360537039,1746860647020,-500.22,0.00019999,2]
[360537040,1746860647053,-5592.47,0.00019999,2]
[360537041,1746860647086,-500.22,0.00019999,2]
[360537042,1746860647117,-393.15,0.00019999,2]
[360537043,1746860647150,-882.31,0.00019999,2]
[360537044,1746860647342,-5592.47,0.00019999,2]
[360537045,1746860647376,-500.22,0.00019999,2]
[360537046,1746860647411,-882.31,0.00019999,2]
[360537047,1746860647446,-5592.47,0.00019999,2]
[360537048,1746860647479,-500.22,0.00019999,2]
[360537049,1746860647513,-882.31,0.00019999,2]
[360537050,1746860647547,-5592.47,0.00019999,2]
[360537051,1746860647578,-500.22,0.00019999,2]
[360537052,1746860647611,-882.31,0.00019999,2]
[360537053,1746860647643,-500.22,0.00019999,2]
[360537054,1746860647676,-882.31,0.00019999,2]
[360537055,1746860647709,-5592.47,0.00019999,2]
[360537056,1746860647740,-500.22,0.00019999,2]
[360537057,1746860647773,-882.31,0.00019999,2]
[360537058,1746860647807,-5592.47,0.00019999,2]
[360537059,1746860647838,-500.22,0.00019999,2]
[360537060,1746860647871,-882.31,0.00019999,2]
[360537061,1746860647910,-5592.47,0.00019999,2]
[360537062,1746860647940,-500.22,0.00019999,2]
[360537063,1746860647974,-882.31,0.00019999,2]
[360537064,1746860648005,-5592.47,0.00019999,2]
[360537065,1746860648036,-500.22,0.00019999,2]
[360537066,1746860648068,-882.31,0.00019999,2]
[360537067,1746860648100,-5592.63999999,0.00019999,2]
[360537068,1746860648132,-500.22,0.00019999,2]
[360537069,1746860648163,-500.22,0.00019999,2]
[360537070,1746860648195,-882.31,0.00019999,2]
[360537071,1746860648227,-500.22,0.00019999,2]
[360537072,1746860648259,-882.31,0.00019999,2]
[360537073,1746860648292,-500.22,0.00019999,2]
[360537074,1746860648323,-500.22,0.00019999,2]
[360537075,1746860648355,-882.31,0.00019999,2]
[360537076,1746860648387,-500.22,0.00019999,2]
[360537077,1746860648418,-882.31,0.00019999,2]
[360537078,1746860648448,-500.22,0.00019999,2]
[360537079,1746860648480,-882.31,0.00019999,2]
[360537080,1746860648510,-500.22,0.00019999,2]
[360537081,1746860648542,-882.31,0.00019999,2]
[360537082,1746860648572,-500.22,0.00019999,2]
[360537083,1746860648603,-882.31,0.00019999,2]
[360537084,1746860648635,-500.22,0.00019999,2]
[360537085,1746860648667,-882.31,0.00019999,2]
[360537086,1746860648698,-500.22,0.00019999,2]
[360537087,1746860648730,-882.31,0.00019999,2]
[360537088,1746860648761,-500.22,0.00019999,2]
[360537089,1746860648793,-882.31,0.00019999,2]
[360537090,1746860648824,-500.33009628,0.00019999,2]
[360537091,1746860648991,-882.31,0.00019999,2]
[360537092,1746860649024,-882.40436917,0.00019999,2]
[360537093,1746860649056,-400.0,0.00019999,2]
[360537094,1746860649088,-400.0,0.00019999,2]
[360537095,1746860649118,-400.0,0.00019999,2]
[360537096,1746860649150,-400.0,0.00019999,2]
[360537097,1746860649181,-200.0,0.00019999,2]
[360537098,1746860649214,-400.0,0.00019999,2]
[360537099,1746860649247,-400.0,0.00019999,2]
[360537100,1746860649279,-400.0,0.00019999,2]
[360537101,1746860649310,-400.0,0.00019999,2]
[360537102,1746860649343,-400.0,0.00019999,2]
[360537103,1746860649374,-497.47317805,0.00019999,2]
[360537104,1746860649406,-1000.0,0.00019999,2]
[360537105,1746860649437,-1000.0,0.00019999,2]
[360537106,1746860649469,-771.88,0.00019999,2]
[360537107,1746860649502,-771.88,0.00019999,2]
[360537108,1746860649534,-771.88,0.00019999,2]
[360537109,1746860649567,-771.88,0.00019999,2]
[360537110,1746860649598,-771.88,0.00019999,2]
[360537111,1746860649630,-771.88,0.00019999,2]
[360537112,1746860649663,-217.35357156,0.00019999,2]
[360537113,1746860649695,-771.88,0.00019999,2]
[360537114,1746860649726,-771.88,0.00019999,2]
[360537115,1746860649757,-242.9,0.00019999,2]
[360537116,1746860649789,-771.88,0.00019999,2]
[360537117,1746860649821,-771.88,0.00019999,2]
[360537118,1746860649854,-771.88,0.00019999,2]
[360537119,1746860649887,-771.88,0.00019999,2]
[360537120,1746860649921,-771.88,0.00019999,2]
[360537121,1746860649954,-771.88,0.00019999,2]
[360537122,1746860649989,-771.88,0.00019999,2]
[360537123,1746860650021,-771.88,0.00019999,2]
[360537124,1746860650053,-771.88,0.00019999,2]
[360537125,1746860650086,-287.14,0.00019999,2]
[360537126,1746860650119,-771.88,0.00019999,2]
[360537127,1746860650154,-771.88,0.00019999,2]
[360537128,1746860650188,-771.88,0.00019999,2]
[360537129,1746860650221,-772.06,0.00019999,2]
[360537130,1746860650253,-430.82,0.00019999,2]
[360537131,1746860650287,-430.82,0.00019999,2]
[360537132,1746860650319,-430.82,0.00019999,2]
[360537133,1746860650351,-430.82,0.00019999,2]
[360537134,1746860650386,-430.82,0.00019999,2]
[360537135,1746860650419,-430.82,0.00019999,2]
[360537136,1746860650451,-430.82,0.00019999,2]
[360537137,1746860650484,-430.82,0.00019999,2]
[360537138,1746860650644,-430.82,0.00019999,2]
[360537139,1746860650680,-430.82,0.00019999,2]
[360537140,1746860650714,-430.82,0.00019999,2]
[360537141,1746860650748,-430.82,0.00019999,2]
[360537142,1746860650782,-430.82,0.00019999,2]
[360537143,1746860650815,-430.82,0.00019999,2]
[360537144,1746860650848,-430.82,0.00019999,2]
[360537145,1746860650885,-430.82,0.00019999,2]
[360537146,1746860650920,-430.82,0.00019999,2]
[360537147,1746860650953,-430.82,0.00019999,2]
[360537148,1746860650987,-430.82,0.00019999,2]
[360537149,1746860651019,-430.82,0.00019999,2]
[360537150,1746860651050,-430.82,0.00019999,2]
[360537151,1746860651085,-8849.09,0.00019999,2]
[360537152,1746860651118,-8849.09,0.00019999,2]
[360537153,1746860651152,-8849.09,0.00019999,2]
[360537154,1746860651186,-8849.09,0.00019999,2]
[360537155,1746860651219,-8849.09,0.00019999,2]
[360537156,1746860651252,-1434.04,0.00019999,2]
[360537157,1746860651284,-8849.09,0.00019999,2]
[360537158,1746860651318,-1434.04,0.00019999,2]
[360537159,1746860651351,-8849.09,0.00019999,2]
[360537160,1746860651387,-1434.04,0.00019999,2]
[360537161,1746860651421,-1434.04,0.00019999,2]
[360537162,1746860651455,-1434.04,0.00019999,2]
[360537163,1746860651490,-8849.09,0.00019999,2]
[360537164,1746860651525,-1434.04,0.00019999,2]
[360537165,1746860651557,-8849.09,0.00019999,2]
[360537166,1746860651591,-1434.04,0.00019999,2]
[360537167,1746860651623,-8849.09,0.00019999,2]
[360537168,1746860651657,-1434.04,0.00019999,2]
[360537169,1746860651688,-8849.09,0.00019999,2]
[360537170,1746860651721,-1434.04,0.00019999,2]
[360537171,1746860651752,-8849.09,0.00019999,2]
[360537172,1746860651785,-1434.04,0.00019999,2]
[360537173,1746860651816,-8849.09,0.00019999,2]
[360537174,1746860651849,-1434.04,0.00019999,2]
[360537175,1746860651884,-8849.09,0.00019999,2]
[360537176,1746860651917,-1434.04,0.00019999,2]
[360537177,1746860651950,-8849.09,0.00019999,2]
[360537178,1746860651983,-1434.04,0.00019999,2]
[360537179,1746860652014,-8849.09,0.00019999,2]
[360537180,1746860652045,-8849.09,0.00019999,2]
[360537181,1746860652077,-1434.04,0.00019999,2]
[360537182,1746860652109,-8849.09,0.00019999,2]
[360537183,1746860652143,-1434.04,0.00019999,2]
[360537184,1746860652176,-8849.09,0.00019999,2]
[360537185,1746860652329,-1434.04,0.00019999,2]
[360537186,1746860652366,-8849.09,0.00019999,2]
[360537187,1746860652408,-1434.04,0.00019999,2]
[360537188,1746860652443,-8849.09,0.00019999,2]
[360537189,1746860652482,-1434.04,0.00019999,2]
[360537190,1746860652515,-8849.09,0.00019999,2]
[360537191,1746860652548,-1434.04,0.00019999,2]
[360537192,1746860652580,-8849.09539338,0.00019999,2]
[360537193,1746860652613,-1434.04,0.00019999,2]
[360537194,1746860652646,-1434.04,0.00019999,2]
[360537195,1746860652680,-1434.04,0.00019999,2]
[360537196,1746860652713,-1434.08,0.00019999,2]
[360537197,1746860652746,-2602.98,0.00019999,2]
[360537198,1746860652778,-2602.98,0.00019999,2]
[360537199,1746860652809,-2602.98,0.00019999,2]
[360537200,1746860652841,-2602.98,0.00019999,2]
[360537201,1746860652872,-2602.98,0.00019999,2]
[360537202,1746860652911,-2602.98,0.00019999,2]
[360537203,1746860652945,-2602.98,0.00019999,2]
[360537204,1746860652979,-2602.98,0.00019999,2]
[360537205,1746860653013,-2602.98,0.00019999,2]
[360537206,1746860653045,-2602.98,0.00019999,2]
[360537207,1746860653078,-2602.98,0.00019999,2]
[360537208,1746860653110,-2602.98,0.00019999,2]
[360537209,1746860653146,-2602.98,0.00019999,2]
[360537210,1746860653178,-2602.98,0.00019999,2]
[360537211,1746860653211,-2602.98,0.00019999,2]
[360537212,1746860653243,-2602.98,0.00019999,2]
[360537213,1746860653275,-2602.98,0.00019999,2]
[360537214,1746860653308,-2602.98,0.00019999,2]
[360537215,1746860653341,-2602.98,0.00019999,2]
[360537216,1746860653373,-2602.98,0.00019999,2]
[360537217,1746860653407,-2602.98,0.00019999,2]
[360537218,1746860653439,-2602.98,0.00019999,2]
[360537219,1746860653472,-2603.04,0.00019999,2]
[360537220,1746860653504,-400.0,0.00019999,2]
[360537221,1746860653535,-400.0,0.00019999,2]
[360537222,1746860653566,-400.0,0.00019999,2]
[360537223,1746860653597,-221.76,0.00019999,2]
[360537224,1746860653629,-193977.00180557,0.0002,2]
[360537256,1746860726611,364.29,0.00017333,2]
[360537257,1746860729689,-171.96820879,0.00019597,2]
[360537258,1746860734252,-192.32179121,0.00019597,2]
[360537259,1746860780429,127816.814955,0.0003,30]
[360537260,1746860781138,558323.62967649,0.0003,30]
[360537261,1746860781170,17480.08176251,0.0003,30]
[360537263,1746860792331,250.0,0.00019079,2]
[360537301,1746860868017,1147.01,0.00019002,2]
[360537307,1746860868649,1147.01,0.00026127,120]
[360537308,1746860868865,1147.01,0.00028502,120]
[360537313,1746860892113,185.35,0.00027397,30]
[360537314,1746860907659,1350.0,0.00019,10]
[360537315,1746860926607,150.59467917,0.0003,30]
[360537316,1746860955761,23890.0,0.0001903,2]
[360537333,1746861002713,500.0,0.0003,30]
[360537334,1746861012013,500.0,0.0003,60]
[360537335,1746861025737,527.40024297,0.0003,30]
[360537338,1746861032093,-338.53820879,0.0001973,2]
[360537339,1746861032103,-1200.0,0.00019745,2]
[360537340,1746861032112,-300.0,0.00019745,2]
[360537341,1746861032122,-227.119868,0.00019746,2]
[360537342,1746861032131,-3659.457577,0.00019746,2]
[360537343,1746861032141,-1204.333759,0.00019746,2]
[360537344,1746861032151,-8614.432931,0.00019746,2]
[360537345,1746861032161,-45.61765621,0.00019789,2]
[360537346,1746861032172,-204.38234379,0.00019789,2]
[360537347,1746861032182,-400.0,0.00019833,2]
[360537348,1746861032191,-503.11716233,0.00019833,2]
[360537349,1746861032200,-400.0,0.00019877,2]
[360537350,1746861032210,-400.0,0.00019877,2]
[360537351,1746861032219,-227.119868,0.00019896,2]
[360537354,1746861032438,-3659.457577,0.00019896,2]
[360537356,1746861032449,-1204.333759,0.00019896,2]
[360537358,1746861032458,-8614.432931,0.00019896,2]
[360537360,1746861032468,-400.0,0.00019898,2]
[360537362,1746861032479,-400.0,0.00019898,2]
[360537363,1746861032490,-400.0,0.00019898,2]
[360537364,1746861032500,-340.83997551,0.000199,2]
[360537365,1746861032509,-585.3152267,0.000199,2]
[360537366,1746861032519,-2062.06622395,0.000199,2]
[360537367,1746861032528,-4785.38848494,0.000199,2]
[360537368,1746861032537,-7745.67654777,0.000199,2]
[360537369,1746861032547,-158.69407634,0.000199,2]
[360537370,1746861032556,-500.0,0.00019973,2]
[360537371,1746861032565,-500.0,0.00019973,2]
[360537372,1746861032575,-500.0,0.00019973,2]
[360537373,1746861032584,-500.0,0.00019973,2]
[360537374,1746861032594,-500.0,0.00019973,2]
[360537375,1746861032603,-315.14258553,0.00019975,2]
[360537376,1746861032612,-207.4,0.00019987,2]
[360537377,1746861032622,-32212.5229736,0.00019996,2]
[360537378,1746861032631,-931.0774943,0.00019996,2]
[360537379,1746861032641,-1048.890212,0.00019996,2]
[360537380,1746861032650,-500.0,0.00019998,2]
[360537381,1746861032659,-197.67485753,0.00019998,2]
[360537382,1746861032669,-400.0,0.00019998,2]
[360537383,1746861032678,-400.0,0.00019998,2]
[360537384,1746861032687,-520.92982827,0.00019998,2]
[360537385,1746861032697,-400.0,0.00019998,2]
[360537386,1746861032706,-400.0,0.00019998,2]
[360537387,1746861032716,-400.0,0.00019998,2]
[360537388,1746861032725,-400.0,0.00019998,2]
[360537389,1746861032734,-2600.13405543,0.00019999,2]
[360537390,1746861032743,-400.0,0.00019999,2]
[360537391,1746861032753,-400.0,0.00019999,2]
[360537392,1746861032762,-400.0,0.00019999,2]
[360537393,1746861032771,-400.0,0.00019999,2]
[360537394,1746861032780,-400.0,0.00019999,2]
[360537395,1746861032789,-400.0,0.00019999,2]
[360537396,1746861032798,-400.0,0.00019999,2]
[360537397,1746861032807,-400.0,0.00019999,2]
[360537398,1746861032816,-400.0,0.00019999,2]
[360537399,1746861032827,-518.72403629,0.00019999,2]
[360537400,1746861032837,-400.0,0.00019999,2]
[360537401,1746861032847,-400.0,0.00019999,2]
[360537402,1746861032857,-400.0,0.00019999,2]
[360537403,1746861032866,-400.0,0.00019999,2]
[360537404,1746861032875,-4.64414542,0.00019999,2]
[360537405,1746861032887,-395.35585458,0.00019999,2]
[360537406,1746861032896,-400.0,0.00019999,2]
[360537407,1746861032905,-400.0,0.00019999,2]
[360537408,1746861032915,-400.0,0.00019999,2]
[360537409,1746861032925,-400.0,0.00019999,2]
[360537410,1746861032935,-400.0,0.00019999,2]
[360537411,1746861032945,-400.0,0.00019999,2]
[360537412,1746861032955,-400.0,0.00019999,2]
[360537413,1746861032965,-400.0,0.00019999,2]
[360537414,1746861032976,-400.0,0.00019999,2]
[360537415,1746861032988,-400.0,0.00019999,2]
[360537416,1746861032997,-400.0,0.00019999,2]
[360537417,1746861033006,-209.0,0.00019999,2]
[360537418,1746861033015,-400.0,0.00019999,2]
[360537419,1746861033025,-483.01184679,0.00019999,2]
[360537420,1746861033034,-152.63547493,0.00019999,2]
[360537421,1746861033044,-500.0,0.00019999,2]
[360537422,1746861033053,-162.01253001,0.00019999,2]
[360537424,1746861033063,-298.19381362,0.00019999,2]
[360537426,1746861033072,-500.0,0.00019999,2]
[360537427,1746861033081,-169.77743899,0.00019999,2]
[360537429,1746861033091,-6394.07723711,0.0002,2]
[360537432,1746861033102,-3804.38795791,0.0002,2]
[360537434,1746861033111,-116537.11902128,0.0002,2]
[360537436,1746861033122,-2571.79212204,0.0002,2]
[360537438,1746861033132,-953.34999998,0.0002,2]
[360537440,1746861033149,-923.57594995,0.0002,2]
[360537441,1746861033160,-1089.5440386,0.0002,2]
[360537442,1746861033175,-845.72788746,0.0002,2]
[360537443,1746861033186,-3127.32606439,0.0002,2]
[360537444,1746861033198,-17794.42173846,0.0002,2]
[360537445,1746861033209,-54855.33565918,0.0002,2]
[360537446,1746861033220,-387.13222533,0.0002,2]
[360537447,1746861033236,-4463.60175122,0.0002,2]
[360537448,1746861033249,-2605.05733531,0.0002,2]
[360537457,1746861038312,-531.63683674,0.0002,2]
[360537458,1746861038324,-14607.90140696,0.0002,2]
[360537459,1746861038339,-2617.97596429,0.0002,2]
[360537460,1746861038530,-1529.9557274,0.0002,2]
[360537461,1746861038542,-309.99184814,0.0002,2]
[360537462,1746861038713,-1466.50557812,0.0002,2]
[360537463,1746861038724,-631.14144959,0.0002,2]
[360537464,1746861038822,-3279.73300446,0.0002,2]
[360537493,1746861040280,-400.0,0.00019833,2]
[360537495,1746861040290,-257.96086,0.0002,2]
[360537555,1746861040919,-1901.6699333,0.000199,2]
[360537556,1746861040929,-2597.34907807,0.0002,2]
[360537557,1746861040941,-7928.13875079,0.0002,2]
[360537558,1746861040952,-575.1169106,0.0002,2]
[360537559,1746861040963,-1030.44499989,0.0002,2]
[360537560,1746861041197,-93.025012,0.0002,2]
[360537561,1746861041209,-542500.0,0.0002,2]
[360537562,1746861041220,-933.36463944,0.0002,2]
[360537563,1746861041231,-4971.11999996,0.0002,2]
[360537564,1746861041247,-3095.2971693,0.0002,2]
[360537565,1746861041295,403.56049,0.000195,2]
[360537581,1746861041759,403.56049,0.000195,2]
[360537582,1746861042062,403.5605,0.000195,2]
[360537595,1746861046022,-400.0,0.00019833,2]
[360537596,1746861046033,-98.84,0.00019998,2]
[360537597,1746861046045,-196.27640901,0.00019998,2]
[360537598,1746861046054,-484.36,0.00019999,2]
[360537599,1746861046064,-210.67236073,0.00019999,2]
[360537600,1746861046074,-308.14544116,0.00019999,2]
[360537604,1746861046300,-91.85455884,0.00019999,2]
[360537606,1746861046310,-450.0,0.00019999,2]
[360537608,1746861046319,-3408.77601326,0.0002,2]
[360537610,1746861046334,-2423.299997,0.0002,2]
[360537611,1746861046346,-4948.65,0.0002,2]
[360537612,1746861046416,-62266.284,0.0002,2]
[360537697,1746861065986,-160.633239,0.00019746,2]
[360537698,1746861066015,-3.3561028,0.00019746,2]
[360537700,1746861077069,180.97176676,0.00017085,2]
[360537701,1746861077094,3239.02823324,0.00017085,2]
[360537702,1746861077935,4445.0,0.0001717,2]
[360537703,1746861078831,3268.0,0.00017255,2]
[360537704,1746861079667,207.0,0.0001734,2]
[360537705,1746861137345,2793.0,0.00017085,2]
[360537706,1746861193444,6887.49901561,0.0002955,30]
[360537707,1746861196999,4221.0,0.00017085,2]
[360537708,1746861203860,250.0,0.00017,2]
[360537709,1746861204699,300.0,0.00019,2]
[360537711,1746861221177,4000.0,0.000248,34]
[360537712,1746861221266,4000.0,0.000273,39]
[360537713,1746861221304,4000.0,0.000298,44]
[360537714,1746861223854,534.48,0.00019122,2]
[360537716,1746861257590,1408.0,0.00017085,2]
[360537717,1746861303901,200.0,0.00018984,2]
[360537721,1746861318202,587.0,0.00017085,2]
[360537722,1746861430979,226.39,0.00018966,2]
[360537723,1746861569306,4000.0,0.000248,34]
[360537724,1746861569487,4000.0,0.000273,39]
[360537725,1746861569556,4000.0,0.000298,44]
[360537742,1746861637219,1500.0,0.00019178,2]
[360537748,1746861771662,374.58,0.00017028,2]
[360537749,1746861771864,374.58,0.00019292,2]
[360537750,1746861780619,1344.30533222,0.0003,120]
[360537751,1746861805846,783.28694225,0.00019,2]
[360537752,1746861808877,250.0,0.0001894,2]
[360537753,1746861893988,299.71,0.00030137,120]
[360537754,1746861917969,1000.0,0.0001894,2]
[360537756,1746861927574,-166.46,0.00019673,2]
[360537757,1746861927600,-250.0,0.00019688,2]
[360537758,1746861932594,191.19024557,0.0002,120]
[360537760,1746861943020,2656.70055,0.000273,39]
[360537761,1746861943062,2656.70055,0.000298,44]
[360537762,1746861943175,2656.70055,0.000248,34]
[360537766,1746861956272,-266.57717717,0.00019621,2]
[360537769,1746861962190,-297.14,0.00019621,2]
[360537770,1746861976980,-152.0,0.00019621,2]
[360537771,1746861981208,861.53882191,0.000209,30]
[360537772,1746861987536,1841.66319318,0.0003,30]
[360537773,1746862024959,3527.89782722,0.0003,30]
[360537774,1746862032318,531.97387243,0.0002301,120]
[360537776,1746862062404,2000.0,0.00018939,2]
[360537783,1746862081708,-205.50686841,0.00019621,2]
[360537784,1746862085556,1038.7154527,0.000295,120]
[360537785,1746862091378,300.60251466,0.000195,2]
[360537786,1746862096647,-168.69719059,0.00019621,2]
[360537788,1746862111704,-156.33623715,0.00019621,2]
[360537789,1746862116219,563.26424687,0.0003,60]
[360537790,1746862123477,8054.14983505,0.00028,60]
[360537791,1746862125094,640.81154111,0.0002,90]
[360537792,1746862126579,205.11676998,0.0002,120]
[360537793,1746862127756,-328.35588308,0.00019621,2]
[360537794,1746862132268,157.29,0.0001897,2]
[360537795,1746862132487,157.29,0.00018977,2]
[360537796,1746862132688,157.29,0.00018984,2]
[360537797,1746862132899,157.29,0.00018991,2]
[360537798,1746862133422,157.29,0.00018997,2]
[360537799,1746862133461,157.29,0.00019004,2]
[360537800,1746862133549,157.29,0.00019011,2]
[360537801,1746862133749,157.29,0.00019018,2]
[360537802,1746862133938,157.29,0.00019024,2]
[360537803,1746862134203,157.29,0.00019031,2]
[360537804,1746862134399,157.29,0.00019038,2]
[360537805,1746862134593,157.29,0.00019045,2]
[360537806,1746862134790,157.29,0.00019052,2]
[360537807,1746862134988,157.29,0.00019058,2]
[360537808,1746862135184,157.29,0.00019065,2]
[360537847,1746862232251,-3303.64650313,0.00019621,2]
[360537852,1746862232279,-206.32771398,0.00019621,2]
[360537853,1746862232290,-200.0,0.00019641,2]
[360537854,1746862232300,-250.0,0.00019662,2]
[360537855,1746862232310,-120.53258993,0.0001974,2]
[360537856,1746862232444,-79.46741007,0.0001974,2]
[360537857,1746862232454,-261.32417383,0.0001978,2]
[360537858,1746862232463,-109.2454891,0.000198,2]
[360537859,1746862232476,-161.2174109,0.000198,2]
[360537860,1746862232486,-180.97176676,0.00019824,2]
[360537861,1746862232495,-1200.0,0.00019839,2]
[360537862,1746862232505,-300.0,0.00019839,2]
[360537863,1746862232515,-500.0,0.0001984,2]
[360537864,1746862232526,-2000.0,0.0001984,2]
[360537865,1746862232536,-500.0,0.0001984,2]
[360537866,1746862232547,-200.0,0.0001984,2]
[360537867,1746862232557,-151.0,0.00019886,2]
[360537868,1746862232567,-207.4,0.00019886,2]
[360537869,1746862232576,-572.83478046,0.00019898,2]
[360537870,1746862232587,-5504.19936713,0.00019898,2]
[360537871,1746862232597,-2056.1695,0.00019898,2]
[360537872,1746862232607,-799.6414,0.00019898,2]
[360537873,1746862232616,-2500.0,0.00019898,2]
[360537874,1746862232626,-150.99,0.00019898,2]
[360537875,1746862232636,-5504.19936707,0.00019898,2]
[360537876,1746862232646,-4528.93549718,0.00019898,2]
[360537877,1746862232658,-975.26386989,0.00019898,2]
[360537878,1746862232668,-603.86761743,0.00019899,2]
[360537881,1746862232683,-4900.33174964,0.00019899,2]
[360537883,1746862232693,-2419.66825036,0.00019899,2]
[360537885,1746862232709,-405.25889416,0.00019899,2]
[360537888,1746862232721,-839.37767496,0.00019899,2]
[360537890,1746862232733,-1839.89454759,0.00019899,2]
[360537892,1746862232742,-1173.1587,0.00019899,2]
[360537894,1746862232751,-466.478,0.00019899,2]
[360537895,1746862232760,-432.0,0.00019899,2]
[360537897,1746862232771,-161.95980249,0.00019899,2]
[360537900,1746862232783,-5504.19936707,0.00019899,2]
[360537902,1746862232792,-31397.9351,0.000199,2]
[360537903,1746862232802,-1000.0,0.000199,2]
[360537905,1746862232811,-8020.32300062,0.000199,2]
[360537908,1746862232824,-36.13238176,0.000199,2]
[360537910,1746862232834,-6563.38874479,0.000199,2]